[Event "DLM Youth 2024"]
[Site "Tuebingen"]
[Date "2024.10.04"]
[Round "4"]
[White "Haug, Mara"]
[Black "Sauer, Tim"]
[Result "1/2-1/2"]
[ECO "B35"]
[WhiteElo "1958"]
[BlackElo "2081"]
[Annotator "RC"]
[PlyCount "107"]
[EventDate "2024.10.03"]
[EventType "team-swiss"]
[EventRounds "7"]
[EventCountry "GER"]
[SourceTitle "playchess.com"]
[Source "ChessBase"]
[SourceQuality "1"]
[TimeControl "40/5400+30:1800+30"]

1. e4 {[%emt 0:00:05]} c5 {[%emt 0:00:30]} 2. Nf3 {[%emt 0:00:14]} Nc6 {[%emt 0:00:11]} 3. d4 {[%emt 0:00:05]} cxd4 {[%emt 0:00:03]} 4. Nxd4 {[%emt 0:00:05]} g6 {[%emt 0:00:06]} 5. Nc3 {[%emt 0:00:05]} Bg7 {[%emt 0:00:04]} 6. Be3 {[%emt 0:00:04]} Nf6 {[%emt 0:00:04]} 7. Bc4 {[%emt 0:00:08]} Qa5 {[%emt 0:00:04]} 8. O-O {[%emt 0:00:07]} O-O {[%emt 0:00:04]} 9. Bb3 {[%emt 0:00:09]} d6 {[%emt 0:00:05]} 10. Re1 {[%emt 0:00:08]} Ng4 {[%emt 0:19:47]} 11. Nxc6 {[%emt 1:10:01]} bxc6 {[%emt 0:00:30]} 12. Bd4 {[%emt 0:00:30]} e5 {[%emt 0:00:30]} 13. Be3 {[%emt 0:00:30]} Nxe3 {[%emt 0:00:30]} 14. Rxe3 {[%emt 0:00:30]} Rd8 {[%emt 0:00:30]} 15. Rd3 {[%emt 0:00:30]} Qc7 {[%emt 0:00:30]} 16. Qf3 {[%emt 0:00:30]} Qe7 {[%emt 0:00:30]} 17. Rad1 {[%emt 0:00:30]} Ba6 {[%emt 0:00:30]} 18. Re3 {[%emt 0:00:30]} Bh6 {[%emt 0:00:30]} 19. Ree1 {[%emt 0:00:30]} Rd7 {[%emt 0:00:30]} 20. Ba4 {[%emt 0:00:30]} Rc7 {[%emt 0:00:30]} 21. b4 {[%emt 0:00:30]} Bc4 {[%emt 0:00:30]} 22. Bb3 {[%emt 0:00:30]} Bxb3 {[%emt 0:00:30]} 23. cxb3 {[%emt 0:00:30]} a6 {[%emt 0:00:30]} 24. Qd3 {[%emt 0:00:30]} Bf8 {[%emt 0:00:30]} 25. Re2 {[%emt 0:00:30]} Qe6 {[%emt 0:00:30]} 26. Rb2 {[%emt 0:00:30]} Rd7 {[%emt 0:00:30]} 27. Na4 {[%emt 0:00:30]} Rb7 {[%emt 0:00:30]} 28. a3 {[%emt 0:00:30]} a5 {[%emt 0:00:30]} 29. Qc3 {[%emt 0:00:30]} axb4 {[%emt 0:00:30]} 30. Qxc6 {[%emt 0:00:30]} Rab8 {[%emt 0:00:30]} 31. axb4 {[%emt 0:00:30]} Rxb4 {[%emt 0:00:30]} 32. Rdb1 {[%emt 0:00:30]} Rxb3 {[%emt 0:00:30]} 33. Rxb3 {[%emt 0:00:30]} Rxb3 {[%emt 0:00:30]} 34. Rxb3 {[%emt 0:00:30]} Qxb3 {[%emt 0:00:30]} 35. g3 {[%emt 0:00:30]} h5 {[%emt 0:00:30]} 36. Nb6 {[%emt 0:00:30]} h4 {[%emt 0:00:30]} 37. Kg2 {[%emt 0:00:30]} Qe6 {[%emt 0:00:30]} 38. h3 {[%emt 0:00:30]} hxg3 {[%emt 0:00:30]} 39. Kxg3 {[%emt 0:00:30]} f5 {[%emt 0:00:30]} 40. f3 {[%emt 0:00:30]} fxe4 {[%emt 0:00:30]} 41. fxe4 {[%emt 0:30:30]} Qf6 {[%emt 0:30:30]} 42. Qc4+ {[%emt 0:00:30]} Kh8 {[%emt 0:00:30]} 43. Nd5 {[%emt 0:00:30]} Qg5+ {[%emt 0:00:30]} 44. Kf3 {[%emt 0:00:30]} Qh4 {[%emt 0:00:30]} 45. Kg2 {[%emt 0:00:30]} Qd8 {[%emt 0:00:30]} 46. Qe2 {[%emt 0:00:30]} Qg5+ {[%emt 0:00:30]} 47. Qg4 {[%emt 0:00:30]} Qxg4+ {[%emt 0:00:30]} 48. hxg4 {[%emt 0:00:30]} Kg7 {[%emt 0:00:30]} 49. Kf3 {[%emt 0:00:30]} Kf7 {[%emt 0:00:30]} 50. Nc7 {[%emt 0:00:30]} Be7 {[%emt 0:00:30]} 51. Nd5 {[%emt 0:00:30]} Bd8 {[%emt 0:00:30]} 52. Nb4 {[%emt 0:00:30]} Ba5 {[%emt 0:00:30]} 53. Nd5 {[%emt 0:00:30]} Kg7 {[%emt 0:00:30]} 54. Ne3 {[%emt 0:00:30]} 1/2-1/2

[Event "DLM Youth 2024"]
[Site "Tuebingen"]
[Date "2024.10.04"]
[Round "4"]
[White "Walter, Richard"]
[Black "Abou Wally, Adrian"]
[Result "1-0"]
[ECO "D78"]
[WhiteElo "1958"]
[BlackElo "1991"]
[Annotator "NA RC"]
[PlyCount "79"]
[EventDate "2024.10.03"]
[EventType "team-swiss"]
[EventRounds "7"]
[EventCountry "GER"]
[SourceTitle "playchess.com"]
[Source "ChessBase"]
[SourceQuality "1"]
[TimeControl "40/5400+30:1800+30"]

1. d4 {[%emt 0:00:02]} Nf6 {[%emt 0:00:06]} 2. Nf3 {[%emt 0:00:03]} g6 {[%emt 0:00:05]} 3. g3 {[%emt 0:00:04]} Bg7 {[%emt 0:00:09]} 4. Bg2 {[%emt 0:00:03]} d5 {[%emt 0:00:09]} 5. O-O {[%emt 0:00:05]} O-O {[%emt 0:00:04]} 6. c4 {[%emt 0:00:03]} c6 {[%emt 0:01:16]} 7. b3 {[%emt 0:00:05]} Nbd7 {[%emt 0:06:37]} 8. Bb2 {[%emt 0:00:08]} Re8 {[%emt 0:01:02]} 9. Nbd2 {[%emt 0:00:06]} e5 {[%emt 0:04:52]} 10. Nxe5 {[%emt 0:04:34]} Nxe5 {[%emt 0:00:08]} 11. dxe5 {[%emt 0:00:05]} Ng4 {[%emt 0:00:25]} 12. cxd5 {[%emt 0:01:07]} cxd5 {[%emt 0:01:05]} 13. Nf3 {[%emt 0:02:07]} Nxe5 {[%emt 0:02:06]} 14. Nxe5 {[%emt 0:00:07]} Bxe5 {[%emt 0:00:05]} 15. Bxe5 {[%emt 0:00:06]} Rxe5 {[%emt 0:00:04]} 16. e3 {[%emt 0:00:16]} Bf5 {[%emt 0:05:10]} 17. Qd4 {[%emt 0:01:06]} Qe7 {[%emt 0:09:36]} 18. Rac1 {[%emt 0:09:14]} b6 {[%emt 0:05:12]} 19. g4 {[%emt 0:03:48]} Bd7 {[%emt 0:25:02]} 20. Rc7 {[%emt 0:06:48]} Qe6 {[%emt 0:00:17]} 21. Rxd7 {[%emt 0:03:36]} Rg5 {[%emt 0:02:42]} 22. Rxd5 {[%emt 0:02:31]} Rxg4 {[%emt 0:00:58]} 23. Qe5 {[%emt 0:00:12]} Qc6 {[%emt 0:08:03]} 24. h3 {[%emt 0:01:32]} Re8 {[%emt 0:07:08]} 25. hxg4 {[%emt 0:03:20]} Rxe5 {[%emt 0:00:07]} 26. Rd8+ {[%emt 0:00:04]} Re8 {[%emt 0:01:19]} 27. Bxc6 {[%emt 0:00:07]} Rxd8 {[%emt 0:00:05]} 28. e4 {[%emt 0:00:05]} Rd2 {[%emt 0:00:10]} 29. a4 {[%emt 0:00:06]} Kg7 {[%emt 0:00:38]} 30. Rc1 {[%emt 0:00:32]} Kf6 {[%emt 0:00:14]} 31. Kg2 {[%emt 0:01:49]} Kg5 {[%emt 0:00:14]} 32. Rh1 {[%emt 0:01:26]} h5 {[%emt 0:01:25]} 33. gxh5 {[%emt 0:05:33]} gxh5 {[%emt 0:00:07]} 34. Bb5 {[%emt 0:02:18]} h4 {[%emt 0:00:54]} 35. Bc4 {[%emt 0:01:25]} f6 {[%emt 0:01:45]} 36. Kf3 {[%emt 0:02:55]} Rd7 {[%emt 0:00:49]} 37. Ke3 {[%emt 0:00:21]} Rc7 {[%emt 0:00:37]} 38. Rg1+ {[%emt 0:02:04]} Kh5 {[%emt 0:00:44]} 39. Kf4 {[%emt 0:01:01]} Rc5 {[%emt 0:01:21]} 40. Rh1 {[%emt 0:01:03]} 1-0

[Event "DLM Youth 2024"]
[Site "Tuebingen"]
[Date "2024.10.04"]
[Round "4"]
[White "Peglau, Paul David"]
[Black "Wartenberg, Alexander"]
[Result "1-0"]
[ECO "D02"]
[WhiteElo "1943"]
[BlackElo "1857"]
[Annotator "RC"]
[PlyCount "61"]
[EventDate "2024.10.03"]
[EventType "team-swiss"]
[EventRounds "7"]
[EventCountry "GER"]
[SourceTitle "playchess.com"]
[Source "ChessBase"]
[SourceQuality "1"]
[TimeControl "40/5400+30:1800+30"]

1. Nf3 {[%emt 0:00:06]} d5 {[%emt 0:00:07]} 2. d4 {[%emt 0:00:41]} Nf6 {[%emt 0:00:08]} 3. Bf4 {[%emt 0:00:09]} c5 {[%emt 0:03:23]} 4. e3 {[%emt 0:01:15]} Bg4 {[%emt 0:04:27]} 5. c3 {[%emt 0:01:43]} Nc6 {[%emt 0:00:37]} 6. Nbd2 {[%emt 0:01:08]} e6 {[%emt 0:01:22]} 7. Be2 {[%emt 0:02:30]} Bd6 {[%emt 0:01:16]} 8. Bxd6 {[%emt 0:04:22]} Qxd6 {[%emt 0:00:13]} 9. O-O {[%emt 0:03:48]} h5 {[%emt 0:01:22]} 10. dxc5 {[%emt 0:01:54]} Qxc5 {[%emt 0:00:23]} 11. Nd4 {[%emt 0:00:46]} Bxe2 {[%emt 0:01:08]} 12. Qxe2 {[%emt 0:02:03]} Nxd4 {[%emt 0:05:06]} 13. exd4 {[%emt 0:05:26]} Qb6 {[%emt 0:02:59]} 14. Nf3 {[%emt 0:04:43]} Ne4 {[%emt 0:02:56]} 15. Ne5 {[%emt 0:01:57]} Nd6 {[%emt 0:02:55]} 16. a4 {[%emt 0:02:47]} Rh6 {[%emt 0:02:02]} 17. f4 {[%emt 0:05:40]} f6 {[%emt 0:02:25]} 18. Nd3 {[%emt 0:02:48]} Kf7 {[%emt 0:03:06]} 19. Nc5 {[%emt 0:06:29]} Nf5 {[%emt 0:02:03]} 20. a5 {[%emt 0:03:26]} Qc6 {[%emt 0:00:25]} 21. b4 {[%emt 0:02:58]} a6 {[%emt 0:01:15]} 22. Rab1 {[%emt 0:03:55]} Nd6 {[%emt 0:24:24]} 23. Qxe6+ {[%emt 0:00:39]} Kg6 {[%emt 0:00:53]} 24. Nxb7 {[%emt 0:04:39]} Qxb7 {[%emt 0:01:49]} 25. Qxd6 {[%emt 0:00:28]} h4 {[%emt 0:02:06]} 26. Rbe1 {[%emt 0:01:44]} h3 {[%emt 0:01:32]} 27. Re7 {[%emt 0:02:27]} Qb5 {[%emt 0:01:38]} 28. Qe6 {[%emt 0:01:42]} Kh7 {[%emt 0:01:08]} 29. Qf5+ {[%emt 0:02:06]} Kh8 {[%emt 0:00:55]} 30. g3 {[%emt 0:04:03]} Qc4 {[%emt 0:00:46]} 31. Rfe1 {[%emt 0:01:03]} 1-0

[Event "DLM Youth 2024"]
[Site "Tuebingen"]
[Date "2024.10.04"]
[Round "4"]
[White "Vranckx, Oscar"]
[Black "Sickmann, Lisa"]
[Result "0-1"]
[ECO "B30"]
[WhiteElo "1933"]
[BlackElo "1946"]
[Annotator "NA RC"]
[PlyCount "56"]
[EventDate "2024.10.03"]
[EventType "team-swiss"]
[EventRounds "7"]
[EventCountry "GER"]
[SourceTitle "playchess.com"]
[Source "ChessBase"]
[SourceQuality "1"]
[TimeControl "40/5400+30:1800+30"]

1. e4 {[%emt 0:00:02]} c5 {[%emt 0:00:02]} 2. Nf3 {[%emt 0:00:05]} e6 {[%emt 0:00:13]} 3. Nc3 {[%emt 0:00:05]} Nc6 {[%emt 0:00:12]} 4. Bb5 {[%emt 0:00:07]} Nge7 {[%emt 0:01:16]} 5. d4 {[%emt 0:00:07]} cxd4 {[%emt 0:02:41]} 6. Nxd4 {[%emt 0:00:18]} Ng6 {[%emt 0:02:38]} 7. O-O {[%emt 0:02:04]} Bc5 {[%emt 0:01:27]} 8. Be3 {[%emt 0:00:55]} Qe7 {[%emt 0:02:36]} 9. Qd2 {[%emt 0:06:02]} O-O {[%emt 0:01:08]} 10. Rae1 {[%emt 0:02:55]} a6 {[%emt 0:01:08]} 11. Be2 {[%emt 0:01:35]} b5 {[%emt 0:01:51]} 12. f4 {[%emt 0:02:35]} Nxd4 {[%emt 0:07:56]} 13. Bxd4 {[%emt 0:00:09]} Qd6 {[%emt 0:00:22]} 14. Rd1 {[%emt 0:00:56]} Nxf4 {[%emt 0:00:51]} 15. Bf3 {[%emt 0:01:09]} Ng6 {[%emt 0:02:47]} 16. Qf2 {[%emt 0:02:32]} Bxd4 {[%emt 0:00:35]} 17. Rxd4 {[%emt 0:00:28]} Qb6 {[%emt 0:00:20]} 18. Rfd1 {[%emt 0:00:34]} Ne5 {[%emt 0:00:52]} 19. b3 {[%emt 0:12:12]} Bb7 {[%emt 0:01:45]} 20. Ne2 {[%emt 0:01:41]} Rac8 {[%emt 0:00:36]} 21. c3 {[%emt 0:00:12]} f5 {[%emt 0:01:33]} 22. Qg3 {[%emt 0:05:14]} Nc6 {[%emt 0:00:48]} 23. Qd6 {[%emt 0:01:11]} e5 {[%emt 0:00:21]} 24. exf5 {[%emt 0:02:41]} exd4 {[%emt 0:00:21]} 25. cxd4 {[%emt 0:01:31]} Qc7 {[%emt 0:00:57]} 26. Bd5+ {[%emt 0:02:26]} Kh8 {[%emt 0:00:12]} 27. Qa3 {[%emt 0:00:42]} Rxf5 {[%emt 0:00:31]} 28. Be4 {[%emt 0:00:07]} Rf6 {[%emt 0:00:31]} 0-1

[Event "DLM Youth 2024"]
[Site "Tuebingen"]
[Date "2024.10.04"]
[Round "4"]
[White "Wilmink, Anna"]
[Black "Kateryniuk, Ivan"]
[Result "1-0"]
[ECO "C42"]
[WhiteElo "1927"]
[BlackElo "1860"]
[Annotator "RC"]
[PlyCount "34"]
[EventDate "2024.10.03"]
[EventType "team-swiss"]
[EventRounds "7"]
[EventCountry "GER"]
[SourceTitle "playchess.com"]
[Source "ChessBase"]
[SourceQuality "1"]
[TimeControl "40/5400+30:1800+30"]

1. e4 {[%emt 0:00:02]} e5 {[%emt 0:00:04]} 2. Nf3 {[%emt 0:00:06]} Nf6 {[%emt 0:00:03]} 3. Nxe5 {[%emt 0:00:08]} d6 {[%emt 0:00:01]} 4. Nf3 {[%emt 0:00:09]} Nxe4 {[%emt 0:00:03]} 5. d4 {[%emt 0:00:08]} d5 {[%emt 0:00:03]} 6. Bd3 {[%emt 0:00:08]} Bd6 {[%emt 0:00:21]} 7. c4 {[%emt 0:00:11]} c6 {[%emt 0:00:05]} 8. Nc3 {[%emt 0:00:08]} Nxc3 {[%emt 0:00:22]} 9. bxc3 {[%emt 0:00:06]} Bg4 {[%emt 0:00:31]} 10. Qe2+ {[%emt 0:00:13]} Qe7 {[%emt 0:00:14]} 11. Qxe7+ {[%emt 0:00:15]} Bxe7 {[%emt 0:00:02]} 12. cxd5 {[%emt 0:00:19]} cxd5 {[%emt 0:00:02]} 13. Ne5 {[%emt 0:00:17]} Bd7 {[%emt 0:00:32]} 14. Nxd7 {[%emt 0:03:47]} Nxd7 {[%emt 0:00:17]} 15. Bf4 {[%emt 0:02:11]} O-O {[%emt 0:01:11]} 16. Rb1 {[%emt 0:01:06]} b6 {[%emt 0:01:42]} 17. Kd2 {[%emt 0:01:27]} Nf6 {[%emt 0:05:06]} 1-0

[Event "DLM Youth 2024"]
[Site "Tuebingen"]
[Date "2024.10.04"]
[Round "4"]
[White "Junge, Mattheo Gabriel"]
[Black "Sun, Christopher"]
[Result "0-1"]
[ECO "C02"]
[WhiteElo "1907"]
[BlackElo "1711"]
[Annotator "RC"]
[PlyCount "112"]
[EventDate "2024.10.03"]
[EventType "team-swiss"]
[EventRounds "7"]
[EventCountry "GER"]
[SourceTitle "playchess.com"]
[Source "ChessBase"]
[SourceQuality "1"]
[TimeControl "40/5400+30:1800+30"]

1. e4 {[%emt 0:00:04]} e6 {[%emt 0:00:16]} 2. d4 {[%emt 0:00:07]} d5 {[%emt 0:00:03]} 3. e5 {[%emt 0:00:04]} c5 {[%emt 0:00:03]} 4. c3 {[%emt 0:00:05]} Nc6 {[%emt 0:00:03]} 5. Nf3 {[%emt 0:00:20]} Qb6 {[%emt 0:00:03]} 6. Bd3 {[%emt 0:00:16]} Bd7 {[%emt 0:01:12]} 7. O-O {[%emt 0:00:09]} cxd4 {[%emt 0:00:35]} 8. Re1 {[%emt 0:00:31]} dxc3 {[%emt 0:02:10]} 9. Nxc3 {[%emt 0:00:47]} Nge7 {[%emt 0:02:07]} 10. h4 {[%emt 0:00:54]} d4 {[%emt 0:22:15]} 11. Nb5 {[%emt 0:13:05]} Nd5 {[%emt 0:01:16]} 12. Bc4 {[%emt 0:09:17]} Bc5 {[%emt 0:07:16]} 13. Bxd5 {[%emt 0:02:43]} Qxb5 {[%emt 0:02:16]} 14. Be4 {[%emt 0:05:18]} h6 {[%emt 0:07:38]} 15. a3 {[%emt 0:03:53]} a5 {[%emt 0:06:55]} 16. Bf4 {[%emt 0:06:21]} Rd8 {[%emt 0:04:13]} 17. Nd2 {[%emt 0:01:24]} Be7 {[%emt 0:11:17]} 18. a4 {[%emt 0:01:54]} Qb6 {[%emt 0:01:54]} 19. Qg4 {[%emt 0:02:43]} g5 {[%emt 0:01:04]} 20. Bg3 {[%emt 0:02:31]} Qb4 {[%emt 0:12:07]} 21. Nf3 {[%emt 0:11:06]} h5 {[%emt 0:00:48]} 22. Qh3 {[%emt 0:00:48]} g4 {[%emt 0:00:08]} 23. Qh2 {[%emt 0:00:03]} gxf3 {[%emt 0:00:06]} 24. Bxf3 {[%emt 0:00:15]} Qb3 {[%emt 0:02:22]} 25. Bf4 {[%emt 0:00:38]} Nb4 {[%emt 0:03:47]} 26. Ra3 {[%emt 0:07:06]} Qxb2 {[%emt 0:03:21]} 27. Bc1 {[%emt 0:00:36]} Qc2 {[%emt 0:00:09]} 28. Be4 {[%emt 0:01:03]} Qc7 {[%emt 0:00:32]} 29. Rf3 {[%emt 0:00:51]} Bc6 {[%emt 0:02:46]} 30. Qf4 {[%emt 0:00:52]} Bf8 {[%emt 0:00:13]} 31. Qf6 {[%emt 0:00:52]} Rg8 {[%emt 0:00:44]} 32. Bh7 {[%emt 0:01:48]} Bxf3 {[%emt 0:00:55]} 33. Bxg8 {[%emt 0:00:07]} Nd3 {[%emt 0:01:24]} 34. Bg5 {[%emt 0:00:43]} Rc8 {[%emt 0:00:35]} 35. Rb1 {[%emt 0:00:23]} Bd5 {[%emt 0:00:32]} 36. f4 {[%emt 0:02:16]} Qe7 {[%emt 0:01:37]} 37. Qh8 {[%emt 0:00:22]} Qc5 {[%emt 0:00:57]} 38. Qh7 {[%emt 0:06:02]} Rc7 {[%emt 0:00:48]} 39. Qxd3 {[%emt 0:01:09]} Qc2 {[%emt 0:00:40]} 40. Qxc2 {[%emt 0:15:14]} Rxc2 {[%emt 0:00:07]} 41. Bh7 {[%emt 0:30:48]} Rxg2+ {[%emt 0:30:47]} 42. Kf1 {[%emt 0:00:16]} Bc5 {[%emt 0:00:46]} 43. Bd3 {[%emt 0:00:52]} b6 {[%emt 0:00:29]} 44. Bc4 {[%emt 0:00:00]} Rc2 {[%emt 0:00:00]} 45. Bxd5 {[%emt 0:00:00]} exd5 {[%emt 0:00:00]} 46. Rb3 {[%emt 0:00:00]} Ra2 {[%emt 0:00:00]} 47. f5 {[%emt 0:00:00]} Rxa4 {[%emt 0:00:00]} 48. Rg3 {[%emt 0:00:00]} Ra3 {[%emt 0:00:00]} 49. Rg2 {[%emt 0:00:00]} Ra1+ {[%emt 0:00:00]} 50. Ke2 {[%emt 0:00:00]} Ra2+ {[%emt 0:00:00]} 51. Kf3 {[%emt 0:00:00]} Rxg2 {[%emt 0:00:00]} 52. Kxg2 {[%emt 0:00:00]} a4 {[%emt 0:00:00]} 53. Bc1 {[%emt 0:00:00]} a3 {[%emt 0:00:00]} 54. Kf2 {[%emt 0:00:00]} d3+ {[%emt 0:00:00]} 55. Ke1 {[%emt 0:00:00]} Bb4+ {[%emt 0:00:00]} 56. Kd1 {[%emt 0:00:00]} d2 {[%emt 0:00:00]} 0-1

[Event "DLM Youth 2024"]
[Site "Tuebingen"]
[Date "2024.10.04"]
[Round "4"]
[White "Jacobasch, Ronja"]
[Black "Andersen, Jonathan"]
[Result "0-1"]
[ECO "A08"]
[WhiteElo "1879"]
[BlackElo "1676"]
[Annotator "NA RC"]
[PlyCount "70"]
[EventDate "2024.10.03"]
[EventType "team-swiss"]
[EventRounds "7"]
[EventCountry "GER"]
[SourceTitle "playchess.com"]
[Source "ChessBase"]
[SourceQuality "1"]
[TimeControl "40/5400+30:1800+30"]

1. Nf3 {[%emt 0:00:02]} Nf6 {[%emt 0:00:07]} 2. g3 {[%emt 0:00:06]} g6 {[%emt 0:00:05]} 3. Bg2 {[%emt 0:00:04]} Bg7 {[%emt 0:00:06]} 4. O-O {[%emt 0:00:06]} c5 {[%emt 0:00:08]} 5. d3 {[%emt 0:00:08]} O-O {[%emt 0:00:24]} 6. e4 {[%emt 0:01:12]} d5 {[%emt 0:00:18]} 7. exd5 {[%emt 0:02:33]} Nxd5 {[%emt 0:00:09]} 8. Nbd2 {[%emt 0:02:53]} Nc6 {[%emt 0:00:41]} 9. a4 {[%emt 0:04:51]} Bg4 {[%emt 0:03:05]} 10. h3 {[%emt 0:09:10]} Bxf3 {[%emt 0:00:07]} 11. Nxf3 {[%emt 0:01:09]} e6 {[%emt 0:00:42]} 12. c3 {[%emt 0:11:31]} Rc8 {[%emt 0:02:52]} 13. Be3 {[%emt 0:12:44]} Qd6 {[%emt 0:03:09]} 14. Qd2 {[%emt 0:12:44]} Na5 {[%emt 0:07:07]} 15. Rad1 {[%emt 0:06:00]} Nb3 {[%emt 0:03:21]} 16. Qc2 {[%emt 0:03:49]} Nd4 {[%emt 0:00:55]} 17. Bxd4 {[%emt 0:06:32]} cxd4 {[%emt 0:00:38]} 18. c4 {[%emt 0:01:43]} Nb4 {[%emt 0:03:08]} 19. Qb3 {[%emt 0:03:03]} b6 {[%emt 0:01:36]} 20. Ng5 {[%emt 0:01:34]} a5 {[%emt 0:00:53]} 21. Ne4 {[%emt 0:01:01]} Qe7 {[%emt 0:00:46]} 22. f4 {[%emt 0:02:24]} f5 {[%emt 0:00:20]} 23. Ng5 {[%emt 0:01:39]} h6 {[%emt 0:00:10]} 24. Nf3 {[%emt 0:00:15]} Rc5 {[%emt 0:00:31]} 25. Rde1 {[%emt 0:01:35]} Qd6 {[%emt 0:00:16]} 26. Re2 {[%emt 0:03:03]} Re8 {[%emt 0:00:56]} 27. Rfe1 {[%emt 0:00:38]} Kh7 {[%emt 0:01:33]} 28. Ne5 {[%emt 0:04:21]} g5 {[%emt 0:01:26]} 29. Qd1 {[%emt 0:02:39]} gxf4 {[%emt 0:00:10]} 30. gxf4 {[%emt 0:00:17]} Bxe5 {[%emt 0:00:37]} 31. Rxe5 {[%emt 0:01:05]} Rxe5 {[%emt 0:00:10]} 32. Rxe5 {[%emt 0:01:22]} Qe7 {[%emt 0:00:31]} 33. Qe2 {[%emt 0:01:05]} Qf6 {[%emt 0:01:29]} 34. Kh1 {[%emt 0:00:40]} Qg6 {[%emt 0:00:30]} 35. Rb5 {[%emt 0:00:30]} Rg8 {[%emt 0:00:30]} 0-1

[Event "DLM Youth 2024"]
[Site "Tuebingen"]
[Date "2024.10.04"]
[Round "4"]
[White "Hubert, Charlotte"]
[Black "Herrmann, Arthur"]
[Result "1-0"]
[ECO "B33"]
[WhiteElo "1878"]
[BlackElo "2031"]
[Annotator "RC"]
[PlyCount "41"]
[EventDate "2024.10.03"]
[EventType "team-swiss"]
[EventRounds "7"]
[EventCountry "GER"]
[SourceTitle "playchess.com"]
[Source "ChessBase"]
[SourceQuality "1"]
[TimeControl "40/5400+30:1800+30"]

1. e4 {[%emt 0:00:18]} c5 {[%emt 0:00:00]} 2. Nf3 {[%emt 0:00:07]} Nc6 {[%emt 0:00:00]} 3. d4 {[%emt 0:00:36]} cxd4 {[%emt 0:01:18]} 4. Nxd4 {[%emt 0:00:07]} Qb6 {[%emt 0:00:14]} 5. Nb3 {[%emt 0:00:22]} Nf6 {[%emt 0:00:33]} 6. Nc3 {[%emt 0:00:21]} e6 {[%emt 0:00:43]} 7. Be3 {[%emt 0:00:22]} Qc7 {[%emt 0:00:25]} 8. a3 {[%emt 0:00:11]} a6 {[%emt 0:00:36]} 9. f4 {[%emt 0:00:26]} d6 {[%emt 0:00:41]} 10. g4 {[%emt 0:03:25]} d5 {[%emt 0:04:09]} 11. exd5 {[%emt 0:04:13]} Nxd5 {[%emt 0:00:27]} 12. Nxd5 {[%emt 0:00:07]} exd5 {[%emt 0:00:04]} 13. Qe2 {[%emt 0:01:35]} Bd6 {[%emt 0:02:14]} 14. O-O-O {[%emt 0:04:23]} O-O {[%emt 0:03:06]} 15. f5 {[%emt 0:05:45]} Ne5 {[%emt 0:15:47]} 16. Bd4 {[%emt 0:08:25]} Bd7 {[%emt 0:09:05]} 17. Kb1 {[%emt 0:15:53]} Rfe8 {[%emt 0:09:41]} 18. Bg2 {[%emt 0:03:21]} Bb5 {[%emt 0:28:45]} 19. Qd2 {[%emt 0:03:35]} Bc4 {[%emt 0:07:14]} 20. Na5 {[%emt 0:08:33]} Rad8 {[%emt 0:01:33]} 21. Rhe1 {[%emt 0:03:43]} 1-0

[Event "DLM Youth 2024"]
[Site "Tuebingen"]
[Date "2024.10.04"]
[Round "4"]
[White "Fischermann, Simon"]
[Black "Bezsonna, Polina"]
[Result "1/2-1/2"]
[ECO "B31"]
[WhiteElo "1873"]
[BlackElo "1905"]
[Annotator "RC"]
[PlyCount "52"]
[EventDate "2024.10.03"]
[EventType "team-swiss"]
[EventRounds "7"]
[EventCountry "GER"]
[SourceTitle "playchess.com"]
[Source "ChessBase"]
[SourceQuality "1"]
[TimeControl "40/5400+30:1800+30"]

1. e4 {[%emt 0:00:01]} c5 {[%emt 0:00:12]} 2. Nc3 {[%emt 0:00:07]} Nc6 {[%emt 0:00:11]} 3. Bb5 {[%emt 0:00:05]} Nd4 {[%emt 0:01:29]} 4. Nf3 {[%emt 0:00:10]} g6 {[%emt 0:00:21]} 5. O-O {[%emt 0:00:19]} Bg7 {[%emt 0:00:50]} 6. Re1 {[%emt 0:00:19]} a6 {[%emt 0:00:57]} 7. Bd3 {[%emt 0:00:20]} d6 {[%emt 0:03:44]} 8. Nxd4 {[%emt 0:01:02]} cxd4 {[%emt 0:01:21]} 9. Ne2 {[%emt 0:00:14]} d5 {[%emt 0:04:08]} 10. exd5 {[%emt 0:03:24]} Qxd5 {[%emt 0:00:28]} 11. b3 {[%emt 0:00:17]} Nh6 {[%emt 0:02:04]} 12. Bb2 {[%emt 0:01:58]} O-O {[%emt 0:00:58]} 13. Ng3 {[%emt 0:01:23]} e5 {[%emt 0:03:33]} 14. a4 {[%emt 0:03:42]} Kh8 {[%emt 0:07:06]} 15. Qf3 {[%emt 0:01:24]} Qxf3 {[%emt 0:01:07]} 16. gxf3 {[%emt 0:00:01]} Bd7 {[%emt 0:05:37]} 17. Be4 {[%emt 0:02:09]} Bc6 {[%emt 0:01:49]} 18. Bxc6 {[%emt 0:00:34]} bxc6 {[%emt 0:00:02]} 19. Ba3 {[%emt 0:00:06]} Rfd8 {[%emt 0:01:03]} 20. d3 {[%emt 0:00:34]} f5 {[%emt 0:07:07]} 21. Nf1 {[%emt 0:02:03]} Nf7 {[%emt 0:01:47]} 22. Nd2 {[%emt 0:00:43]} Bf8 {[%emt 0:16:28]} 23. Bxf8 {[%emt 0:01:07]} Rxf8 {[%emt 0:00:02]} 24. Nc4 {[%emt 0:00:33]} Rfe8 {[%emt 0:00:05]} 25. a5 {[%emt 0:00:29]} Re6 {[%emt 0:10:23]} 26. Ra4 {[%emt 0:01:19]} Ng5 {[%emt 0:03:55]} 1/2-1/2

[Event "DLM Youth 2024"]
[Site "Tuebingen"]
[Date "2024.10.04"]
[Round "4"]
[White "Yin, Vito"]
[Black "Bundan, Edward"]
[Result "0-1"]
[ECO "E20"]
[WhiteElo "1859"]
[BlackElo "1952"]
[Annotator "NA RC"]
[PlyCount "62"]
[EventDate "2024.10.03"]
[EventType "team-swiss"]
[EventRounds "7"]
[EventCountry "GER"]
[SourceTitle "playchess.com"]
[Source "ChessBase"]
[SourceQuality "1"]
[TimeControl "40/5400+30:1800+30"]

1. c4 {[%emt 0:00:04]} Nf6 {[%emt 0:00:11]} 2. Nc3 {[%emt 0:00:04]} e6 {[%emt 0:00:20]} 3. d4 {[%emt 0:00:15]} Bb4 {[%emt 0:00:18]} 4. Nf3 {[%emt 0:01:06]} c5 {[%emt 0:01:45]} 5. g3 {[%emt 0:01:45]} O-O {[%emt 0:00:52]} 6. Bg2 {[%emt 0:00:21]} Ne4 {[%emt 0:01:15]} 7. Bd2 {[%emt 0:00:40]} Bxc3 {[%emt 0:00:26]} 8. bxc3 {[%emt 0:00:31]} f5 {[%emt 0:00:48]} 9. O-O {[%emt 0:01:00]} d6 {[%emt 0:00:42]} 10. Qc2 {[%emt 0:02:49]} Nd7 {[%emt 0:01:03]} 11. Rfd1 {[%emt 0:04:33]} Qe7 {[%emt 0:00:45]} 12. h4 h6 {[%emt 0:00:30]} 13. Ne1 Ndf6 {[%emt 0:00:30]} 14. Nd3 e5 {[%emt 0:00:30]} 15. Be3 b6 {[%emt 0:00:30]} 16. a4 Ba6 {[%emt 0:00:30]} 17. Qb3 Rac8 {[%emt 0:00:30]} 18. Bh3 cxd4 {[%emt 0:00:30]} 19. c5+ d5 {[%emt 0:00:30]} 20. cxd4 exd4 {[%emt 0:00:30]} 21. Bxd4 Bc4 {[%emt 0:00:30]} 22. Qa3 bxc5 {[%emt 0:00:30]} 23. Bxf5 Rc7 {[%emt 0:00:30]} 24. Bxf6 Qxf6 {[%emt 0:00:30]} 25. Bxe4 dxe4 {[%emt 0:00:30]} 26. Nf4 g5 {[%emt 0:00:30]} 27. hxg5 hxg5 {[%emt 0:00:30]} 28. Nh3 Be6 {[%emt 0:00:30]} 29. g4 Bxg4 {[%emt 0:00:30]} 30. Kg2 Bxh3+ {[%emt 0:00:30]} 31. Kxh3 Rh7+ {[%emt 0:00:30]} 0-1